fUST/lending_fUST_20260116
["ID","MTS","AMOUNT","RATE_DAILY","PERIOD"]
[402107146,1768521037945,-1670.83,0.00010958,10]
[402107147,1768521037955,-1670.83,0.00010958,11]
[402107148,1768521037964,-1670.83,0.00010958,12]
[402107149,1768521037973,-1670.83,0.00010958,13]
[402107150,1768521037983,-1670.83,0.00010958,14]
[402107151,1768521037992,-1670.83,0.00010958,15]
[402107152,1768521038002,-4959.64113131,0.00010975,2]
[402107153,1768521038012,-500.0,0.00010989,2]
[402107154,1768521038022,-243.08615077,0.00010989,2]
[402107155,1768521038031,-2004.0,0.00011063,2]
[402107156,1768521038041,-500.0,0.00011126,2]
[402107157,1768521038051,-587.0,0.00011182,2]
[402107158,1768521038060,-500.0,0.00011222,2]
[402107159,1768521038070,-324.75611963,0.00011243,2]
[402107160,1768521038079,-500.0,0.00011263,2]
[402107161,1768521038088,-1670.83,0.00011348,16]
[402107162,1768521038097,-1670.83,0.00011348,17]
[402107163,1768521038107,-288.50578496,0.000114,2]
[402107164,1768521038116,-500.0,0.00011496,2]
[402107165,1768521038126,-500.0,0.00011575,2]
[402107182,1768521038458,-194.43910051,0.00011575,2]
[402107184,1768521038468,-678.0,0.00011575,2]
[402107186,1768521038477,-500.0,0.00011575,2]
[402107188,1768521038486,-500.0,0.00011575,2]
[402107190,1768521038495,-500.0,0.00011575,2]
[402107192,1768521038505,-500.0,0.00011575,2]
[402107194,1768521038515,-500.0,0.00011575,2]
[402107196,1768521038525,-500.0,0.00011712,2]
[402107198,1768521038534,-678.0,0.00011712,2]
[402107200,1768521038544,-500.0,0.00011712,2]
[402107202,1768521038553,-500.0,0.00011712,2]
[402107204,1768521038563,-500.0,0.00011712,2]
[402107206,1768521038572,-500.0,0.00011712,2]
[402107208,1768521038581,-500.0,0.00011712,2]
[402107210,1768521038591,-490.75948719,0.0001177,2]
[402107212,1768521038600,-2147.0,0.00011849,2]
[402107214,1768521038609,-629.0,0.00011849,2]
[402107216,1768521038618,-1367.0,0.00011849,2]
[402107217,1768521038627,-417.0,0.00011849,2]
[402107219,1768521038636,-417.0,0.00011849,2]
[402107221,1768521038645,-500.0,0.00011849,2]
[402107223,1768521038654,-678.0,0.00011849,2]
[402107225,1768521038664,-500.0,0.00011849,2]
[402107227,1768521038673,-500.0,0.00011849,2]
[402107229,1768521038683,-500.0,0.00011849,2]
[402107231,1768521038692,-500.0,0.00011849,2]
[402107233,1768521038702,-2153.30672806,0.00011906,2]
[402107235,1768521038711,-213.39269675,0.00011906,2]
[402107237,1768521038722,-500.0,0.00011986,2]
[402107239,1768521038732,-482.49936425,0.00011986,2]
[402107241,1768521038741,-400.39390306,0.00011986,2]
[402107243,1768521038750,-500.0,0.00011986,2]
[402107245,1768521038760,-500.0,0.00011986,2]
[402107247,1768521038770,-678.0,0.00011986,2]
[402107249,1768521038780,-500.0,0.00012123,2]
[402107251,1768521038791,-200.0,0.00012123,2]
[402107253,1768521038800,-271.43018214,0.00012123,2]
[402107255,1768521038810,-500.0,0.00012123,2]
[402107257,1768521038820,-500.0,0.00012123,2]
[402107259,1768521038830,-678.0,0.00012123,2]
[402107261,1768521038839,-250.0,0.00012223,2]
[402107263,1768521038849,-500.0,0.0001226,2]
[402107265,1768521038858,-500.0,0.0001226,2]
[402107267,1768521038867,-678.0,0.0001226,2]
[402107269,1768521038877,-823.0,0.000123,2]
[402107271,1768521038887,-203.16,0.00012329,2]
[402107272,1768521038897,-500.0,0.00012329,2]
[402107273,1768521038906,-500.0,0.00012329,2]
[402107274,1768521038915,-500.0,0.00012329,2]
[402107275,1768521038923,-500.0,0.00012329,2]
[402107276,1768521038932,-500.0,0.00012329,2]
[402107277,1768521038942,-500.0,0.00012329,2]
[402107278,1768521038951,-500.0,0.00012329,2]
[402107279,1768521038960,-500.0,0.00012329,2]
[402107280,1768521038970,-500.0,0.00012329,2]
[402107282,1768521038980,-500.0,0.00012329,2]
[402107284,1768521038989,-500.0,0.00012329,2]
[402107286,1768521038999,-500.0,0.00012329,2]
[402107288,1768521039009,-500.0,0.00012329,2]
[402107290,1768521039022,-500.0,0.00012329,2]
[402107292,1768521039032,-500.0,0.00012329,2]
[402107295,1768521039041,-500.0,0.00012329,2]
[402107297,1768521039051,-629.97026182,0.00012329,2]
[402107299,1768521039060,-500.0,0.00012329,2]
[402107300,1768521039069,-500.0,0.00012329,2]
[402107302,1768521039078,-500.0,0.00012329,2]
[402107305,1768521039088,-500.0,0.00012329,2]
[402107306,1768521039097,-500.0,0.00012329,2]
[402107308,1768521039107,-500.0,0.00012329,2]
[402107310,1768521039116,-500.0,0.00012329,2]
[402107313,1768521039126,-500.0,0.00012329,2]
[402107315,1768521039136,-500.0,0.00012329,2]
[402107317,1768521039145,-500.0,0.00012329,2]
[402107318,1768521039155,-500.0,0.00012329,2]
[402107321,1768521039165,-500.0,0.00012329,2]
[402107323,1768521039174,-500.0,0.00012329,2]
[402107325,1768521039185,-500.0,0.00012329,2]
[402107327,1768521039194,-500.0,0.00012329,2]
[402107329,1768521039204,-500.0,0.00012329,2]
[402107331,1768521039213,-500.0,0.00012329,2]
[402107332,1768521039222,-500.0,0.00012329,2]
[402107334,1768521039232,-500.0,0.00012329,2]
[402107336,1768521039241,-500.0,0.00012329,2]
[402107338,1768521039251,-450.0,0.00012329,2]
[402107340,1768521039260,-500.0,0.00012329,2]
[402107342,1768521039270,-500.0,0.00012329,2]
[402107344,1768521039279,-500.0,0.00012329,2]
[402107346,1768521039288,-500.0,0.00012329,2]
[402107348,1768521039299,-500.0,0.00012329,2]
[402107350,1768521039308,-500.0,0.00012329,2]
[402107352,1768521039318,-500.0,0.00012397,2]
[402107354,1768521039327,-500.0,0.00012397,2]
[402107356,1768521039336,-678.0,0.00012397,2]
[402107358,1768521039345,-554.02588884,0.00012534,2]
[402107360,1768521039355,-500.0,0.00012534,2]
[402107362,1768521039364,-678.0,0.00012534,2]
[402107364,1768521039373,-4959.64113131,0.00012621,2]
[402107366,1768521039382,-500.0,0.00012671,2]
[402107368,1768521039391,-678.0,0.00012671,2]
[402107370,1768521039402,-500.0,0.00012808,2]
[402107372,1768521039412,-678.0,0.00012808,2]
[402107374,1768521039421,-371.2,0.0001284,2]
[402107376,1768521039430,-500.0,0.00012945,2]
[402107378,1768521039441,-678.0,0.00012945,2]
[402107380,1768521039450,-500.0,0.00013082,2]
[402107382,1768521039459,-678.0,0.00013082,2]
[402107384,1768521039468,-500.0,0.00013219,2]
[402107386,1768521039477,-678.0,0.00013219,2]
[402107388,1768521039486,-374.29518872,0.00013243,2]
[402107390,1768521039495,-500.0,0.00013273,2]
[402107392,1768521039504,-500.0,0.00013273,2]
[402107394,1768521039513,-500.0,0.00013273,2]
[402107396,1768521039522,-500.0,0.00013273,2]
[402107398,1768521039532,-498.42292613,0.00013273,2]
[402107400,1768521039541,-500.0,0.00013273,2]
[402107402,1768521039550,-500.0,0.00013273,2]
[402107404,1768521039559,-500.0,0.00013273,2]
[402107406,1768521039568,-500.0,0.00013273,2]
[402107408,1768521039577,-500.0,0.00013273,2]
[402107410,1768521039586,-500.0,0.00013273,2]
[402107412,1768521039595,-500.0,0.00013273,2]
[402107414,1768521039604,-500.0,0.00013273,2]
[402107416,1768521039613,-500.0,0.00013273,2]
[402107418,1768521039623,-500.0,0.00013273,2]
[402107420,1768521039632,-500.0,0.00013273,2]
[402107422,1768521039641,-500.0,0.00013273,2]
[402107424,1768521039651,-500.0,0.00013273,2]
[402107426,1768521039660,-500.98976618,0.00013273,2]
[402107428,1768521039669,-500.0,0.00013273,2]
[402107430,1768521039678,-500.0,0.00013273,2]
[402107432,1768521039687,-500.0,0.00013273,2]
[402107434,1768521039696,-500.0,0.00013273,2]
[402107436,1768521039705,-500.0,0.00013273,2]
[402107438,1768521039715,-500.0,0.00013273,2]
[402107441,1768521039728,-1670.83,0.0001331,18]
[402107443,1768521039737,-1670.83,0.0001331,19]
[402107445,1768521039747,-500.0,0.00013356,2]
[402107447,1768521039756,-678.0,0.00013356,2]
[402107448,1768521039766,-155.0,0.00013441,2]
[402107450,1768521039775,-2000.0,0.00013442,2]
[402107453,1768521039784,-2000.0,0.00013442,2]
[402107455,1768521039795,-2000.0,0.00013442,2]
[402107457,1768521039805,-2000.0,0.00013442,2]
[402107459,1768521039815,-2000.0,0.00013442,2]
[402107461,1768521039825,-2000.0,0.00013442,2]
[402107463,1768521039834,-2000.0,0.00013442,2]
[402107465,1768521039843,-2000.0,0.00013442,2]
[402107467,1768521039851,-2000.0,0.00013442,2]
[402107468,1768521039860,-2000.0,0.00013442,2]
[402107470,1768521039870,-2000.0,0.00013442,2]
[402107473,1768521039879,-2000.0,0.00013442,2]
[402107475,1768521039889,-2000.0,0.00013442,2]
[402107476,1768521039898,-2000.0,0.00013442,2]
[402107478,1768521039907,-2000.0,0.00013442,2]
[402107481,1768521039917,-2000.0,0.00013442,2]
[402107483,1768521039926,-1023.879,0.00013442,2]
[402107485,1768521039935,-1000.0,0.00013442,2]
[402107486,1768521039945,-1000.0,0.00013442,2]
[402107489,1768521039954,-1000.0,0.00013442,2]
[402107491,1768521039963,-1000.0,0.00013442,2]
[402107493,1768521039973,-1000.0,0.00013442,2]
[402107494,1768521039982,-475.0,0.00013442,2]
[402107496,1768521039992,-475.0,0.00013442,2]
[402107499,1768521040001,-475.0,0.00013442,2]
[402107501,1768521040011,-475.0,0.00013442,2]
[402107503,1768521040020,-475.0,0.00013442,2]
[402107505,1768521040029,-475.0,0.00013442,2]
[402107507,1768521040038,-475.0,0.00013442,2]
[402107509,1768521040047,-475.0,0.00013442,2]
[402107511,1768521040056,-475.0,0.00013442,2]
[402107513,1768521040065,-475.0,0.00013442,2]
[402107515,1768521040076,-475.0,0.00013442,2]
[402107517,1768521040086,-475.0,0.00013442,2]
[402107519,1768521040095,-475.0,0.00013442,2]
[402107521,1768521040104,-475.0,0.00013442,2]
[402107523,1768521040113,-475.0,0.00013442,2]
[402107525,1768521040122,-475.0,0.00013442,2]
[402107527,1768521040131,-475.0,0.00013442,2]
[402107529,1768521040140,-475.0,0.00013442,2]
[402107531,1768521040150,-475.0,0.00013442,2]
[402107533,1768521040159,-475.0,0.00013442,2]
[402107535,1768521040168,-475.0,0.00013442,2]
[402107537,1768521040177,-475.0,0.00013442,2]
[402107539,1768521040187,-475.0,0.00013442,2]
[402107540,1768521040195,-475.0,0.00013442,2]
[402107541,1768521040205,-475.0,0.00013442,2]
[402107543,1768521040215,-475.0,0.00013442,2]
[402107545,1768521040225,-475.0,0.00013442,2]
[402107546,1768521040234,-475.0,0.00013442,2]
[402107547,1768521040244,-475.0,0.00013442,2]
[402107548,1768521040253,-475.0,0.00013442,2]
[402107549,1768521040262,-475.0,0.00013442,2]
[402107550,1768521040271,-475.0,0.00013442,2]
[402107551,1768521040281,-475.0,0.00013442,2]
[402107552,1768521040295,-475.0,0.00013442,2]
[402107553,1768521040304,-475.0,0.00013442,2]
[402107554,1768521040314,-475.0,0.00013442,2]
[402107555,1768521040324,-475.0,0.00013442,2]
[402107556,1768521040333,-475.0,0.00013442,2]
[402107557,1768521040341,-475.0,0.00013442,2]
[402107558,1768521040351,-475.0,0.00013442,2]
[402107559,1768521040360,-475.0,0.00013442,2]
[402107560,1768521040369,-475.0,0.00013442,2]
[402107561,1768521040378,-475.0,0.00013442,2]
[402107562,1768521040387,-475.0,0.00013442,2]
[402107563,1768521040397,-475.0,0.00013442,2]
[402107564,1768521040406,-475.0,0.00013442,2]
[402107565,1768521040416,-475.0,0.00013442,2]
[402107566,1768521040425,-475.0,0.00013442,2]
[402107567,1768521040437,-475.0,0.00013442,2]
[402107568,1768521040457,-475.0,0.00013442,2]
[402107569,1768521040480,-403.609,0.00013442,2]
[402107570,1768521040491,-475.0,0.00013442,2]
[402107571,1768521040500,-151.0,0.00013442,2]
[402107572,1768521040511,-500.0,0.00013493,2]
[402107573,1768521040520,-678.0,0.00013493,2]
[402107574,1768521040529,-151.0,0.000135,2]
[402107575,1768521040538,-1152.0,0.0001353,2]
[402107576,1768521040547,-10000.0,0.00013598,2]
[402107577,1768521040559,-500.0,0.0001363,2]
[402107578,1768521040576,-678.0,0.0001363,2]
[402107579,1768521040586,-300.0,0.00013673,2]
[402107580,1768521040598,-500.0,0.00013698,2]
[402107581,1768521040618,-500.0,0.00013698,2]
[402107582,1768521040633,-500.0,0.00013698,2]
[402107583,1768521040642,-500.0,0.00013698,2]
[402107584,1768521040651,-500.0,0.00013698,2]
[402107585,1768521040660,-499.5497095,0.00013698,2]
[402107586,1768521040669,-500.0,0.00013698,2]
[402107587,1768521040679,-500.0,0.00013698,2]
[402107588,1768521040688,-500.0,0.00013698,2]
[402107589,1768521040697,-500.0,0.00013698,2]
[402107590,1768521040707,-500.0,0.00013698,2]
[402107591,1768521040717,-500.0,0.00013698,2]
[402107592,1768521040734,-500.0,0.00013698,2]
[402107593,1768521040743,-500.0,0.00013698,2]
[402107594,1768521040753,-500.0,0.00013698,2]
[402107595,1768521040763,-500.0,0.00013698,2]
[402107596,1768521040772,-500.0,0.00013698,2]
[402107597,1768521040781,-500.0,0.00013698,2]
[402107598,1768521040791,-500.0,0.00013698,2]
[402107599,1768521040803,-500.0,0.00013698,2]
[402107600,1768521040812,-400.99242796,0.00013698,2]
[402107601,1768521040821,-500.0,0.00013698,2]
[402107602,1768521040830,-500.0,0.00013698,2]
[402107603,1768521040839,-500.0,0.00013698,2]
[402107604,1768521040848,-500.0,0.00013698,2]
[402107605,1768521040858,-213.19502493,0.00013698,2]
[402107606,1768521040867,-151.0,0.00013698,2]
[402107607,1768521040877,-1203.44,0.00013698,2]
[402107608,1768521040886,-1203.44,0.00013698,2]
[402107609,1768521040895,-1203.44,0.00013698,2]
[402107610,1768521040904,-1203.44,0.00013698,2]
[402107611,1768521040913,-1203.44,0.00013698,2]
[402107612,1768521040923,-1203.44,0.00013698,2]
[402107613,1768521040932,-1203.44,0.00013698,2]
[402107614,1768521040941,-1203.44,0.00013698,2]
[402107615,1768521040951,-1203.44,0.00013698,2]
[402107616,1768521040960,-1203.44,0.00013698,2]
[402107617,1768521040969,-1203.44,0.00013698,2]
[402107618,1768521040979,-1203.44,0.00013698,2]
[402107620,1768521040988,-1203.44,0.00013698,2]
[402107622,1768521040997,-1203.44,0.00013698,2]
[402107624,1768521041007,-1203.44,0.00013698,2]
[402107625,1768521041016,-1203.44,0.00013698,2]
[402107626,1768521041025,-1203.44,0.00013698,2]
[402107628,1768521041034,-1203.44,0.00013698,2]
[402107630,1768521041044,-567.64728941,0.00013698,2]
[402107632,1768521041053,-849.26,0.00013698,2]
[402107635,1768521041062,-849.26,0.00013698,2]
[402107636,1768521041071,-849.26,0.00013698,2]
[402107639,1768521041079,-849.26,0.00013698,2]
[402107641,1768521041089,-849.26,0.00013698,2]
[402107642,1768521041098,-849.26,0.00013698,2]
[402107644,1768521041107,-849.26,0.00013698,2]
[402107646,1768521041116,-849.26,0.00013698,2]
[402107648,1768521041125,-849.26,0.00013698,2]
[402107650,1768521041135,-849.26,0.00013698,2]
[402107652,1768521041144,-849.26,0.00013698,2]
[402107654,1768521041153,-849.26,0.00013698,2]
[402107656,1768521041162,-849.26,0.00013698,2]
[402107658,1768521041171,-849.26,0.00013698,2]
[402107660,1768521041181,-3950.5361061,0.00013699,2]
[402107662,1768521041190,-1000.0,0.00013699,2]
[402107664,1768521041199,-1409.206542,0.00013699,2]
[402107666,1768521041208,-500.0,0.00013699,2]
[402107668,1768521041217,-500.0,0.00013699,2]
[402107670,1768521041227,-500.0,0.00013699,2]
[402107672,1768521041237,-500.0,0.00013699,2]
[402107674,1768521041247,-501.50533149,0.00013699,2]
[402107676,1768521041256,-500.0,0.00013699,2]
[402107678,1768521041265,-500.0,0.00013699,2]
[402107680,1768521041274,-500.0,0.00013699,2]
[402107682,1768521041283,-622.77582061,0.00013699,2]
[402107684,1768521041292,-500.0,0.00013699,2]
[402107686,1768521041301,-308.12834967,0.00013699,2]
[402107688,1768521041310,-500.0,0.00013699,2]
[402107690,1768521041319,-500.0,0.00013699,2]
[402107692,1768521041328,-500.0,0.00013699,2]
[402107694,1768521041337,-500.0,0.00013699,2]
[402107696,1768521041347,-500.0,0.00013699,2]
[402107698,1768521041356,-500.0,0.00013699,2]
[402107700,1768521041365,-500.0,0.00013699,2]
[402107702,1768521041374,-500.0,0.00013699,2]
[402107704,1768521041383,-502.0049811,0.00013699,2]
[402107706,1768521041392,-500.0,0.00013699,2]
[402107708,1768521041402,-596.52592323,0.00013699,2]
[402107710,1768521041411,-529.76450099,0.00013767,2]
[402107712,1768521041421,-678.0,0.00013767,2]
[402107715,1768521041431,-170.54,0.00013804,2]
[402107716,1768521041441,-1670.83,0.00013808,20]
[402107718,1768521041450,-1203.44,0.00013808,2]
[402107721,1768521041459,-203.98331718,0.00013815,2]
[402107723,1768521041468,-574.08865466,0.00013821,2]
[402107725,1768521041477,-158.55298923,0.00013821,2]
[402107726,1768521041486,-456.61841221,0.00013821,2]
[402107728,1768521041495,-1000.0,0.00013821,2]
[402107731,1768521041504,-1000.0,0.00013821,2]
[402107732,1768521041513,-500.0,0.00013821,2]
[402107735,1768521041523,-1000.0,0.00013821,2]
[402107737,1768521041532,-1000.0,0.00013821,2]
[402107738,1768521041541,-1000.0,0.00013821,2]
[402107740,1768521041550,-500.24255453,0.00013821,2]
[402107743,1768521041559,-1004.99784011,0.00013821,2]
[402107745,1768521041568,-1000.0,0.00013821,2]
[402107746,1768521041579,-678.0,0.00013904,2]
[402107748,1768521041589,-678.0,0.00014041,2]
[402107751,1768521041601,-1582.0,0.00014096,2]
[402107753,1768521041612,-1582.0,0.00014131,2]
[402107755,1768521041621,-200.0,0.00014151,2]
[402107757,1768521041630,-151.0,0.00014152,2]
[402107759,1768521041639,-100000.0,0.00014152,2]
[402107761,1768521041648,-678.0,0.00014178,2]
[402107763,1768521041657,-600.0,0.00014221,2]
[402107765,1768521041666,-1582.0,0.00014226,2]
[402107767,1768521041675,-1000.0,0.00014247,2]
[402107769,1768521041686,-310.24231288,0.00014247,2]
[402107771,1768521041697,-321.18687271,0.00014247,2]
[402107773,1768521041706,-193.89026614,0.00014247,2]
[402107775,1768521041715,-431.404347,0.00014247,2]
[402107777,1768521041727,-1000.0,0.00014247,2]
[402107779,1768521041736,-1000.0,0.00014247,2]
[402107781,1768521041746,-1000.0,0.00014247,2]
[402107783,1768521041755,-250.0,0.00014247,2]
[402107785,1768521041764,-502.24534211,0.00014247,2]
[402107787,1768521041775,-1000.0,0.00014247,2]
[402107789,1768521041784,-1000.0,0.00014247,2]
[402107791,1768521041797,-1000.0,0.00014247,2]
[402107793,1768521041806,-1000.0,0.00014247,2]
[402107795,1768521041816,-500.0,0.00014247,2]
[402107797,1768521041825,-920.28537916,0.00014247,2]
[402107799,1768521041835,-504.7283729,0.00014247,2]
[402107801,1768521041844,-1000.0,0.00014247,2]
[402107802,1768521041853,-1582.0,0.00014256,2]
[402107805,1768521041862,-4959.64113131,0.00014268,2]
[402107807,1768521041872,-151.0,0.000143,2]
[402107809,1768521041881,-499.438974,0.000143,7]
[402107811,1768521041890,-678.0,0.00014315,2]
[402107813,1768521041900,-1007.748264,0.00014315,7]
[402107815,1768521041909,-1000.0,0.00014368,2]
[402107817,1768521041918,-828.59178577,0.00014368,2]
[402107819,1768521041927,-1500.0,0.00014368,2]
[402107821,1768521041937,-2409.080282,0.00014368,7]
[402107822,1768521041946,-1500.0,0.00014368,2]
[402107824,1768521041955,-1500.0,0.00014368,2]
[402107826,1768521041964,-678.0,0.00014452,2]
[402107829,1768521041974,-5000.0,0.0001451,2]
[402107831,1768521041983,-1582.0,0.00014517,2]
[402107833,1768521041992,-1582.0,0.00014522,2]
[402107835,1768521042002,-1582.0,0.00014522,2]
[402107837,1768521042011,-1248.597435,0.00014522,7]
[402107839,1768521042020,-1582.0,0.00014556,2]
[402107841,1768521042029,-678.0,0.00014589,2]
[402107843,1768521042039,-194.9,0.00014616,2]
[402107845,1768521042048,-1582.0,0.00014644,2]
[402107847,1768521042057,-1582.0,0.00014675,2]
[402107848,1768521042065,-1670.83,0.00014693,21]
[402107850,1768521042075,-1670.83,0.00014693,21]
[402107852,1768521042084,-1670.83,0.00014693,21]
[402107854,1768521042093,-1670.83,0.00014693,21]
[402107856,1768521042102,-1670.90449452,0.00014693,21]
[402107858,1768521042111,-1203.44,0.00014693,2]
[402107860,1768521042119,-1203.44,0.00014693,2]
[402107862,1768521042128,-1203.44,0.00014693,2]
[402107864,1768521042139,-1203.44,0.00014693,2]
[402107866,1768521042148,-1203.6655421,0.00014693,2]
[402107868,1768521042157,-1582.0,0.00014698,2]
[402107870,1768521042166,-697.83414865,0.00014726,2]
[402107872,1768521042176,-1582.0,0.00014767,2]
[402107874,1768521042185,-1582.0,0.00014768,2]
[402107876,1768521042194,-2519.370658,0.00014768,7]
[402107878,1768521042203,-6022.700707,0.00014768,7]
[402107881,1768521042212,-300.0,0.00014768,2]
[402107883,1768521042223,-155.0,0.00014785,2]
[402107885,1768521042234,-1500.0,0.00014795,2]
[402107887,1768521042244,-1500.0,0.00014795,2]
[402107889,1768521042252,-1500.0,0.00014795,2]
[402107890,1768521042261,-201.04460068,0.00014795,2]
[402107891,1768521042270,-1200.0,0.00014795,2]
[402107893,1768521042279,-1500.0,0.00014795,2]
[402107895,1768521042288,-1500.0,0.00014795,2]
[402107897,1768521042297,-242.15507317,0.00014795,2]
[402107899,1768521042306,-175.313301,0.00014816,7]
[402107901,1768521042317,-1582.0,0.00014841,2]
[402107903,1768521042326,-15056.751766,0.00014849,7]
[402107905,1768521042335,-2147.0,0.00014849,2]
[402107907,1768521042344,-629.0,0.00014849,2]
[402107909,1768521042353,-1367.0,0.00014849,2]
[402107911,1768521042362,-417.0,0.00014849,2]
[402107913,1768521042371,-417.0,0.00014849,2]
[402107914,1768521042380,-1613.0,0.00014883,2]
[402107916,1768521042390,-1582.0,0.00014914,2]
[402107918,1768521042400,-3121.493588,0.00014916,7]
[402107920,1768521042409,-1002.40018303,0.00014916,2]
[402107922,1768521042419,-1073.16021096,0.00014916,2]
[402107924,1768521042428,-2000.0,0.00014916,2]
[402107926,1768521042438,-1582.0,0.00014932,2]
[402107928,1768521042447,-1582.0,0.00015063,2]
[402107930,1768521042456,-163.995173,0.00015068,2]
[402107952,1768521042679,-151.0,0.000151,2]
[402107954,1768521042690,-1582.0,0.00015115,2]
[402107956,1768521042699,-6298.426648,0.00015115,7]
[402107958,1768521042708,-423.83425782,0.00015243,2]
[402107960,1768521042718,-1582.0,0.0001526,2]
[402107962,1768521042731,-1582.0,0.00015272,2]
[402107964,1768521042740,-1582.0,0.00015277,2]
[402107966,1768521042750,-181.421,0.00015334,2]
[402107968,1768521042759,-605.07188428,0.00015342,2]
[402107970,1768521042771,-2065.26822594,0.00015342,2]
[402107972,1768521042781,-2000.0,0.00015342,2]
[402107974,1768521042790,-890.91804532,0.00015342,2]
[402107976,1768521042800,-2000.0,0.00015342,2]
[402107978,1768521042810,-1582.0,0.0001538,2]
[402107980,1768521042819,-219.26,0.00015428,2]
[402107982,1768521042828,-2500.0,0.00015464,2]
[402107984,1768521042838,-1582.0,0.00015467,2]
[402107986,1768521042847,-1582.0,0.00015475,2]
[402107988,1768521042856,-1582.0,0.00015497,2]
[402107989,1768521042866,-226.793936,0.0001589,2]
[402107991,1768521042876,-2500.0,0.0001589,2]
[402107993,1768521042885,-2500.0,0.0001589,2]
[402107995,1768521042894,-151.0,0.000159,2]
[402107997,1768521042904,-4959.64113131,0.00015914,2]
[402107999,1768521042913,-778.0,0.00016,2]
[402108001,1768521042923,-3000.0,0.00016012,2]
[402108003,1768521042932,-30000.0,0.00016014,2]
[402108005,1768521042942,-151.0,0.00016014,2]
[402108007,1768521042952,-151.0,0.00016014,2]
[402108009,1768521042961,-151.0,0.00016014,2]
[402108011,1768521042970,-151.0,0.00016014,2]
[402108013,1768521042979,-151.0,0.00016014,2]
[402108015,1768521042988,-151.0,0.00016014,2]
[402108017,1768521042997,-151.0,0.00016014,2]
[402108019,1768521043007,-151.0,0.00016014,2]
[402108020,1768521043016,-151.0,0.00016014,2]
[402108022,1768521043025,-151.0,0.00016014,2]
[402108024,1768521043035,-1957.856,0.00016014,2]
[402108026,1768521043045,-151.0,0.00016014,2]
[402108028,1768521043055,-151.0,0.00016014,2]
[402108030,1768521043065,-151.0,0.00016014,2]
[402108032,1768521043074,-151.0,0.00016014,2]
[402108034,1768521043084,-151.0,0.00016014,2]
[402108036,1768521043093,-151.0,0.00016014,2]
[402108038,1768521043102,-151.0,0.00016014,2]
[402108040,1768521043112,-151.0,0.00016014,2]
[402108042,1768521043122,-151.0,0.00016014,2]
[402108044,1768521043132,-151.0,0.00016014,2]
[402108046,1768521043142,-2030.296672,0.00016069,2]
[402108047,1768521043152,-2105.41764886,0.00016124,2]
[402108049,1768521043162,-155.0,0.00016129,2]
[402108051,1768521043171,-2183.31810187,0.00016179,2]
[402108053,1768521043180,-74381.95380139,0.0001621,2]
[402108055,1768521043189,-2264.10087164,0.00016234,2]
[402108058,1768521043198,-243.62,0.0001624,2]
[402108060,1768521043208,-2347.87260389,0.00016289,2]
[402108061,1768521043217,-1156.81981868,0.00016344,2]
[402108063,1768521043227,-2258.0,0.00016371,2]
[402108065,1768521043236,-467.9,0.00016438,2]
[402108067,1768521043246,-151.0,0.00016438,2]
[402108069,1768521043258,-151.0,0.00016438,2]